[Event "*** Qualifier 2: Titled Tuesday 3|2 Blitz"]
[Site "Chess.com"]
[Date "2017.04.11"]
[Round "2"]
[White "johnathan113"]
[Black "Kacparov"]
[Result "1-0"]
[WhiteElo "2420"]
[BlackElo "2569"]
[TimeControl "180+2"]
[EndTime "13:23:29 PDT"]
[Termination "johnathan113 won by checkmate"]

1. g3 {[%clk 0:02:50.3]} 1... d5 {[%clk 0:02:56.2]} 2. Nf3 {[%clk 0:02:51.1]}
2... c6 {[%clk 0:02:57.1]} 3. Bg2 {[%clk 0:02:52.4]} 3... Bg4 {[%clk 0:02:55.4]}
4. O-O {[%clk 0:02:54.3]} 4... Nd7 {[%clk 0:02:56.3]} 5. d3 {[%clk 0:02:55.4]}
5... e5 {[%clk 0:02:54.8]} 6. Nbd2 {[%clk 0:02:56.4]} 6... Ngf6 {[%clk
0:02:54.3]} 7. e4 {[%clk 0:02:56.8]} 7... dxe4 {[%clk 0:02:53.9]} 8. dxe4 {[%clk
0:02:57.6]} 8... Qc7 {[%clk 0:02:54.4]} 9. h3 {[%clk 0:02:58.3]} 9... Bxf3
{[%clk 0:02:55.2]} 10. Qxf3 {[%clk 0:02:54.1]} 10... Be7 {[%clk 0:02:53.6]} 11.
Qe2 {[%clk 0:02:55]} 11... O-O {[%clk 0:02:54.2]} 12. b3 {[%clk 0:02:56.1]}
12... Rad8 {[%clk 0:02:52.3]} 13. Bb2 {[%clk 0:02:56.5]} 13... Rfe8 {[%clk
0:02:45]} 14. a4 {[%clk 0:02:56.7]} 14... Nf8 {[%clk 0:02:43.7]} 15. Nc4 {[%clk
0:02:55.7]} 15... N6d7 {[%clk 0:02:39.1]} 16. f4 {[%clk 0:02:50.4]} 16... Bc5+
{[%clk 0:02:33.7]} 17. Kh1 {[%clk 0:02:50.3]} 17... Bd4 {[%clk 0:02:13.8]} 18.
c3 {[%clk 0:02:38.6]} 18... Bc5 {[%clk 0:02:13.8]} 19. b4 {[%clk 0:02:36.8]}
19... Be7 {[%clk 0:02:09.3]} 20. Rad1 {[%clk 0:01:50.9]} 20... Bf6 {[%clk
0:02:08.2]} 21. f5 {[%clk 0:01:51.1]} 21... Nb6 {[%clk 0:02:06.2]} 22. a5 {[%clk
0:01:48.2]} 22... Nxc4 {[%clk 0:02:06.9]} 23. Qxc4 {[%clk 0:01:50.1]} 23... a6
{[%clk 0:02:05.1]} 24. Qe2 {[%clk 0:01:44.7]} 24... c5 {[%clk 0:01:50.4]} 25.
Rxd8 {[%clk 0:01:44.7]} 25... Rxd8 {[%clk 0:01:47.9]} 26. Rd1 {[%clk 0:01:42]}
26... cxb4 {[%clk 0:01:40.7]} 27. Rxd8 {[%clk 0:01:39.6]} 27... Qxd8 {[%clk
0:01:39]} 28. cxb4 {[%clk 0:01:40.9]} 28... Qc7 {[%clk 0:01:32.7]} 29. Kh2
{[%clk 0:01:39.3]} 29... Nd7 {[%clk 0:01:33.5]} 30. Bf1 {[%clk 0:01:34.3]} 30...
Nb8 {[%clk 0:01:34]} 31. Qc4 {[%clk 0:01:30.4]} 31... Qd7 {[%clk 0:01:32.2]} 32.
Qd5 {[%clk 0:01:24.9]} 32... Qc7 {[%clk 0:01:14.5]} 33. b5 {[%clk 0:01:07.1]}
33... h5 {[%clk 0:00:46.7]} 34. bxa6 {[%clk 0:01:03]} 34... bxa6 {[%clk
0:00:41.2]} 35. Bc4 {[%clk 0:00:53.8]} 35... Nc6 {[%clk 0:00:34.5]} 36. Bc3
{[%clk 0:00:35.1]} 36... Qb7 {[%clk 0:00:30.1]} 37. h4 {[%clk 0:00:32.2]} 37...
Qc7 {[%clk 0:00:18.7]} 38. Bxa6 {[%clk 0:00:27.4]} 38... Ne7 {[%clk 0:00:19.7]}
39. Qc4 {[%clk 0:00:25]} 39... Qd6 {[%clk 0:00:20.8]} 40. Qd3 {[%clk 0:00:18.5]}
40... Qa3 {[%clk 0:00:19.4]} 41. Bd2 {[%clk 0:00:17]} 41... Qa2 {[%clk
0:00:18.3]} 42. Bc4 {[%clk 0:00:17.2]} 42... Qa1 {[%clk 0:00:19.4]} 43. a6
{[%clk 0:00:15.7]} 43... Nc6 {[%clk 0:00:19.9]} 44. Qd5 {[%clk 0:00:11.6]} 44...
Nd8 {[%clk 0:00:16.4]} 45. Bg5 {[%clk 0:00:10.1]} 45... Bxg5 {[%clk 0:00:15.1]}
46. hxg5 {[%clk 0:00:10.9]} 46... Qb2+ {[%clk 0:00:16.3]} 47. Kh3 {[%clk
0:00:11.7]} 47... Qa1 {[%clk 0:00:14.1]} 48. Qxd8+ {[%clk 0:00:11.9]} 48... Kh7
{[%clk 0:00:15.2]} 49. g6+ {[%clk 0:00:13.2]} 49... Kh6 {[%clk 0:00:15.1]} 50.
Qd2# {[%clk 0:00:06.6]} 1-0

[Event "*** Qualifier 2: Titled Tuesday 3|2 Blitz"]
[Site "Chess.com"]
[Date "2017.04.11"]
[Round "2"]
[White "Konavets"]
[Black "SmoothAsAHedgehog"]
[Result "1/2-1/2"]
[WhiteElo "2609"]
[BlackElo "2526"]
[TimeControl "180+2"]
[EndTime "13:23:43 PDT"]
[Termination "Game drawn by agreement"]

1. d4 {[%clk 0:02:58.7]} 1... Nf6 {[%clk 0:03:00.5]} 2. c4 {[%clk 0:02:56.5]}
2... e6 {[%clk 0:03:01.1]} 3. g3 {[%clk 0:02:55.7]} 3... Bb4+ {[%clk 0:03:00.6]}
4. Bd2 {[%clk 0:02:56.2]} 4... Qe7 {[%clk 0:03:00.9]} 5. Bg2 {[%clk 0:02:57.4]}
5... Nc6 {[%clk 0:03:01.4]} 6. Nf3 {[%clk 0:02:58.8]} 6... Bxd2+ {[%clk
0:03:01.9]} 7. Nbxd2 {[%clk 0:03:00.7]} 7... O-O {[%clk 0:03:01.3]} 8. O-O
{[%clk 0:02:48.1]} 8... d6 {[%clk 0:03:00.4]} 9. e4 {[%clk 0:02:49.4]} 9... e5
{[%clk 0:03:01.5]} 10. d5 {[%clk 0:02:50.5]} 10... Nb8 {[%clk 0:03:02.5]} 11. a3
{[%clk 0:02:52.2]} 11... a5 {[%clk 0:03:03.3]} 12. b4 {[%clk 0:02:50.6]} 12...
Na6 {[%clk 0:03:04.8]} 13. Qb3 {[%clk 0:02:50.7]} 13... c6 {[%clk 0:03:06]} 14.
Rac1 {[%clk 0:02:51.1]} 14... axb4 {[%clk 0:03:06.9]} 15. axb4 {[%clk
0:02:48.1]} 15... c5 {[%clk 0:03:08.1]} 16. b5 {[%clk 0:02:46.3]} 16... Nb4
{[%clk 0:03:09.5]} 17. Ne1 {[%clk 0:02:47.4]} 17... Bd7 {[%clk 0:03:05.1]} 18.
Nd3 {[%clk 0:02:45.6]} 18... Nxd3 {[%clk 0:03:04.4]} 19. Qxd3 {[%clk 0:02:47.5]}
19... Ra7 {[%clk 0:02:56.5]} 20. Ra1 {[%clk 0:02:47.3]} 20... Rfa8 {[%clk
0:02:57.5]} 21. Qc3 {[%clk 0:02:49]} 21... Qd8 {[%clk 0:02:55.1]} 22. f4 {[%clk
0:02:45.4]} 22... exf4 {[%clk 0:02:19.2]} 23. Rxa7 {[%clk 0:02:33.2]} 23... Rxa7
{[%clk 0:02:17.7]} 24. gxf4 {[%clk 0:02:33.4]} 24... Qa5 {[%clk 0:02:12.1]} 25.
Qxa5 {[%clk 0:01:47.4]} 25... Rxa5 {[%clk 0:02:14]} 26. e5 {[%clk 0:01:49]}
26... Ne8 {[%clk 0:02:11.3]} 27. Ne4 {[%clk 0:01:48.4]} 27... Ra4 {[%clk
0:02:02.3]} 28. Rc1 {[%clk 0:01:43.1]} 28... Kf8 {[%clk 0:01:57.3]} 29. b6
{[%clk 0:01:26.7]} 29... Ke7 {[%clk 0:01:16.6]} 30. Bf1 {[%clk 0:00:32.2]} 30...
Ra5 {[%clk 0:00:50.6]} 31. Re1 {[%clk 0:00:32.2]} 31... Bf5 {[%clk 0:00:40.7]}
32. Ng3 {[%clk 0:00:20.9]} 32... Bd7 {[%clk 0:00:22.5]} 33. exd6+ {[%clk
0:00:22.2]} 33... Kd8 {[%clk 0:00:21.4]} 34. Ne4 {[%clk 0:00:22.8]} 34... Bf5
{[%clk 0:00:19.4]} 35. Nd2 {[%clk 0:00:17.1]} 35... Nxd6 {[%clk 0:00:20.4]} 36.
Nb3 {[%clk 0:00:18.4]} 36... Ra6 {[%clk 0:00:19.9]} 37. Nxc5 {[%clk 0:00:19.6]}
37... Rxb6 {[%clk 0:00:21.2]} 38. Rc1 {[%clk 0:00:17.6]} 38... Rb2 {[%clk
0:00:20.2]} 39. Na4 {[%clk 0:00:18.6]} 39... Rb4 {[%clk 0:00:20.7]} 40. Nc3
{[%clk 0:00:18.7]} 40... Nxc4 {[%clk 0:00:17.8]} 41. Na2 {[%clk 0:00:19.9]}
41... Rb2 {[%clk 0:00:15.1]} 42. Bxc4 {[%clk 0:00:20.9]} 42... b5 {[%clk
0:00:16.3]} 43. Bxb5 {[%clk 0:00:06.5]} 43... Rxa2 {[%clk 0:00:13.5]} 44. d6
{[%clk 0:00:05.5]} 44... Bd7 {[%clk 0:00:13.4]} 45. Bxd7 {[%clk 0:00:05.4]}
45... Kxd7 {[%clk 0:00:14.1]} 46. Rc7+ {[%clk 0:00:07.3]} 46... Kxd6 {[%clk
0:00:14]} 47. Rxf7 {[%clk 0:00:08.3]} 47... Ra4 {[%clk 0:00:13.3]} 48. Kg2
{[%clk 0:00:09.3]} 48... Ke6 {[%clk 0:00:13.9]} 49. Rxg7 {[%clk 0:00:10.8]}
49... Rxf4 {[%clk 0:00:14.2]} 50. Rxh7 {[%clk 0:00:12.3]} 50... Kf6 {[%clk
0:00:15.2]} 51. Kg3 {[%clk 0:00:12.8]} 51... Rb4 {[%clk 0:00:15.4]} 52. Rc7
{[%clk 0:00:13.6]} 52... Kg6 {[%clk 0:00:16.5]} 53. Rc5 {[%clk 0:00:14]} 53...
Rb3+ {[%clk 0:00:17.1]} 54. Kf4 {[%clk 0:00:14.5]} 54... Rb4+ {[%clk 0:00:17.8]}
55. Ke5 {[%clk 0:00:15.9]} 55... Rh4 {[%clk 0:00:16.8]} 56. Rc2 {[%clk
0:00:17.1]} 56... Rb4 {[%clk 0:00:14.9]} 57. Rg2+ {[%clk 0:00:18]} 57... Kh5
{[%clk 0:00:14.9]} 58. Kf5 {[%clk 0:00:19.1]} 58... Rb5+ {[%clk 0:00:14.2]} 59.
Kf6 {[%clk 0:00:19.8]} 59... Kh4 {[%clk 0:00:14.2]} 1/2-1/2

[Event "*** Qualifier 2: Titled Tuesday 3|2 Blitz"]
[Site "Chess.com"]
[Date "2017.04.11"]
[Round "2"]
[White "prochn"]
[Black "Vamostodorecto"]
[Result "1-0"]
[WhiteElo "2238"]
[BlackElo "2335"]
[TimeControl "180+2"]
[EndTime "13:23:44 PDT"]
[Termination "prochn won by resignation"]

1. d4 {[%clk 0:03:02]} 1... d5 {[%clk 0:02:59.9]} 2. c4 {[%clk 0:03:02.5]} 2...
Nc6 {[%clk 0:03:00.7]} 3. cxd5 {[%clk 0:03:00]} 3... Qxd5 {[%clk 0:03:00.3]} 4.
Nf3 {[%clk 0:02:54.9]} 4... e5 {[%clk 0:02:58.9]} 5. Nc3 {[%clk 0:02:38.5]} 5...
Bb4 {[%clk 0:02:58]} 6. dxe5 {[%clk 0:02:29]} 6... Qxd1+ {[%clk 0:02:48.3]} 7.
Kxd1 {[%clk 0:02:30.1]} 7... Bxc3 {[%clk 0:02:42.4]} 8. bxc3 {[%clk 0:02:30.5]}
8... Bg4 {[%clk 0:02:44.3]} 9. Bf4 {[%clk 0:02:24.8]} 9... O-O-O+ {[%clk
0:02:41.4]} 10. Kc2 {[%clk 0:02:22.3]} 10... Nge7 {[%clk 0:02:34.5]} 11. e3
{[%clk 0:02:17.4]} 11... Bf5+ {[%clk 0:02:20.1]} 12. Kb2 {[%clk 0:02:11.7]}
12... Ng6 {[%clk 0:02:13.2]} 13. Bb5 {[%clk 0:02:08.6]} 13... Na5 {[%clk
0:01:59.8]} 14. Rad1 {[%clk 0:02:00.6]} 14... h6 {[%clk 0:01:48.1]} 15. Kc1
{[%clk 0:01:45.7]} 15... Be4 {[%clk 0:01:38.8]} 16. Rxd8+ {[%clk 0:01:43.4]}
16... Rxd8 {[%clk 0:01:38]} 17. Rd1 {[%clk 0:01:31.4]} 17... Bd5 {[%clk
0:01:37.1]} 18. Rd2 {[%clk 0:01:18.2]} 18... a6 {[%clk 0:01:37]} 19. Be2 {[%clk
0:01:14.6]} 19... b5 {[%clk 0:01:26]} 20. Bg3 {[%clk 0:01:13.4]} 20... c6 {[%clk
0:01:24.4]} 21. Nh4 {[%clk 0:01:09.3]} 21... Nxh4 {[%clk 0:01:21.1]} 22. Bxh4
{[%clk 0:01:10.4]} 22... Re8 {[%clk 0:01:20.3]} 23. f4 {[%clk 0:01:09.2]} 23...
g5 {[%clk 0:01:11.7]} 24. fxg5 {[%clk 0:01:03.4]} 24... hxg5 {[%clk 0:01:13.6]}
25. Bxg5 {[%clk 0:01:04.5]} 25... Rxe5 {[%clk 0:01:12.7]} 26. Bf4 {[%clk
0:01:03.4]} 26... Re6 {[%clk 0:01:08.9]} 27. Bg4 {[%clk 0:01:03.4]} 27... Nc4
{[%clk 0:00:58.8]} 28. Rf2 {[%clk 0:01:02]} 28... Kb7 {[%clk 0:00:57.1]} 29.
Bxe6 {[%clk 0:01:02.2]} 29... Bxe6 {[%clk 0:00:59]} 30. h3 {[%clk 0:00:56.9]}
30... Nb6 {[%clk 0:00:58.9]} 31. g4 {[%clk 0:00:55.9]} 31... Nd5 {[%clk
0:00:59.6]} 32. Kb2 {[%clk 0:00:55]} 32... b4 {[%clk 0:00:58.6]} 33. cxb4 {[%clk
0:00:50.1]} 33... Nxb4 {[%clk 0:01:00.5]} 34. Ka1 {[%clk 0:00:49]} 34... a5
{[%clk 0:00:58.2]} 35. Rg2 {[%clk 0:00:47.1]} 35... a4 {[%clk 0:00:58.3]} 36. h4
{[%clk 0:00:43.2]} 36... a3 {[%clk 0:00:58.4]} 37. Bd6 {[%clk 0:00:44.1]} 37...
Bd5 {[%clk 0:00:54.5]} 38. Rd2 {[%clk 0:00:40.7]} 38... Na6 {[%clk 0:00:41.6]}
39. Bxa3 {[%clk 0:00:41.1]} 39... Bf3 {[%clk 0:00:43.3]} 40. Bd6 {[%clk
0:00:41.5]} 40... Bxg4 {[%clk 0:00:42.7]} 41. e4 {[%clk 0:00:41.1]} 41... c5
{[%clk 0:00:41.5]} 42. Rg2 {[%clk 0:00:38]} 42... Bf3 {[%clk 0:00:39.7]} 43. Rf2
{[%clk 0:00:35.9]} 43... Bxe4 {[%clk 0:00:39.4]} 44. Rxf7+ {[%clk 0:00:36.7]}
44... Kc6 {[%clk 0:00:41.3]} 45. Rf6 {[%clk 0:00:36.1]} 45... Nb4 {[%clk
0:00:42.7]} 46. Bf8+ {[%clk 0:00:22.7]} 46... Kb5 {[%clk 0:00:43.4]} 47. h5
{[%clk 0:00:19.7]} 47... Ka4 {[%clk 0:00:42.4]} 48. Bxc5 {[%clk 0:00:18.4]}
48... Nc2+ {[%clk 0:00:41.1]} 49. Kb2 {[%clk 0:00:19.2]} 49... Kb5 {[%clk
0:00:40.9]} 50. Rf4 {[%clk 0:00:16.3]} 50... Bh7 {[%clk 0:00:37.7]} 51. Bf8
{[%clk 0:00:14.3]} 51... Ne1 {[%clk 0:00:38.1]} 52. Rf7 {[%clk 0:00:13.8]} 52...
Bg8 {[%clk 0:00:34.5]} 53. Rg7 {[%clk 0:00:13.6]} 53... Bc4 {[%clk 0:00:31.1]}
54. h6 {[%clk 0:00:14.3]} 54... Nd3+ {[%clk 0:00:33]} 55. Kc3 {[%clk 0:00:13.8]}
55... Ne5 {[%clk 0:00:31.3]} 56. h7 {[%clk 0:00:13.7]} 56... Nf7 {[%clk
0:00:31.8]} 57. Rxf7 {[%clk 0:00:14.6]} 1-0

[Event "*** Qualifier 2: Titled Tuesday 3|2 Blitz"]
[Site "Chess.com"]
[Date "2017.04.11"]
[Round "2"]
[White "MasterLeif"]
[Black "pKiLz5Rn9b"]
[Result "0-1"]
[WhiteElo "2312"]
[BlackElo "2509"]
[TimeControl "180+2"]
[EndTime "13:23:53 PDT"]
[Termination "pKiLz5Rn9b won by resignation"]

1. d4 {[%clk 0:03:01.9]} 1... Nf6 {[%clk 0:03:00.6]} 2. c4 {[%clk 0:03:01.3]}
2... e6 {[%clk 0:03:02]} 3. Nf3 {[%clk 0:03:00.5]} 3... b6 {[%clk 0:03:03.1]} 4.
g3 {[%clk 0:03:01.1]} 4... Bb7 {[%clk 0:03:03.7]} 5. Bg2 {[%clk 0:03:02.1]} 5...
Be7 {[%clk 0:03:05.3]} 6. O-O {[%clk 0:03:03.2]} 6... O-O {[%clk 0:03:06.8]} 7.
Nc3 {[%clk 0:03:03.8]} 7... Ne4 {[%clk 0:03:07.8]} 8. Bd2 {[%clk 0:02:58]} 8...
d5 {[%clk 0:03:08.6]} 9. cxd5 {[%clk 0:02:55.4]} 9... exd5 {[%clk 0:03:10]} 10.
Rc1 {[%clk 0:02:56]} 10... Na6 {[%clk 0:03:11.3]} 11. Ne5 {[%clk 0:02:52.9]}
11... c5 {[%clk 0:03:11.8]} 12. Nxe4 {[%clk 0:02:51]} 12... dxe4 {[%clk
0:03:12.8]} 13. dxc5 {[%clk 0:02:48]} 13... Nxc5 {[%clk 0:03:10.6]} 14. Bc3
{[%clk 0:02:39.9]} 14... Bf6 {[%clk 0:03:06.2]} 15. b4 {[%clk 0:02:23.5]} 15...
Qe7 {[%clk 0:02:09.3]} 16. bxc5 {[%clk 0:02:14.3]} 16... Bxe5 {[%clk 0:02:10.4]}
17. c6 {[%clk 0:01:48]} 17... Ba6 {[%clk 0:02:03.5]} 18. Qd7 {[%clk 0:01:35.2]}
18... Rfe8 {[%clk 0:01:10.9]} 19. Qxe7 {[%clk 0:00:36.1]} 19... Rxe7 {[%clk
0:01:12.8]} 20. Bxe5 {[%clk 0:00:37.9]} 20... Rxe5 {[%clk 0:01:13.9]} 21. Rfd1
{[%clk 0:00:35]} 21... f5 {[%clk 0:01:01.2]} 22. c7 {[%clk 0:00:33.5]} 22... Rc8
{[%clk 0:00:55.1]} 23. Rd8+ {[%clk 0:00:32.8]} 23... Kf7 {[%clk 0:00:55.2]} 24.
g4 {[%clk 0:00:21]} 24... g6 {[%clk 0:00:54.8]} 25. gxf5 {[%clk 0:00:22.2]}
25... gxf5 {[%clk 0:00:56.7]} 26. Bh3 {[%clk 0:00:20.8]} 26... Ke7 {[%clk
0:00:53.6]} 27. Rxc8 {[%clk 0:00:13.6]} 27... Bxc8 {[%clk 0:00:54.2]} 28. Rc6
{[%clk 0:00:13.8]} 28... Re6 {[%clk 0:00:44.8]} 29. Rc1 {[%clk 0:00:09.9]} 29...
Rf6 {[%clk 0:00:37.1]} 30. Kf1 {[%clk 0:00:10.7]} 30... Kd6 {[%clk 0:00:36.3]}
31. Ke1 {[%clk 0:00:09.9]} 31... Rf7 {[%clk 0:00:37.4]} 32. Rd1+ {[%clk
0:00:11]} 32... Kxc7 {[%clk 0:00:37.7]} 33. Rd5 {[%clk 0:00:12.3]} 33... Be6
{[%clk 0:00:38.1]} 34. Re5 {[%clk 0:00:12.8]} 34... Kd6 {[%clk 0:00:39.3]} 35.
Rb5 {[%clk 0:00:12.8]} 35... Bxa2 {[%clk 0:00:33.8]} 36. Bxf5 {[%clk 0:00:11.7]}
36... Bc4 {[%clk 0:00:35]} 37. Rb4 {[%clk 0:00:10.5]} 37... Rxf5 {[%clk
0:00:34.6]} 38. Rxc4 {[%clk 0:00:11.6]} 38... Re5 {[%clk 0:00:34.7]} 39. Kd2
{[%clk 0:00:10.1]} 39... a5 {[%clk 0:00:36.1]} 40. Ke3 {[%clk 0:00:11.4]} 40...
b5 {[%clk 0:00:37.6]} 41. Rxe4 {[%clk 0:00:12.5]} 41... Rh5 {[%clk 0:00:34]} 42.
h4 {[%clk 0:00:12.9]} 42... a4 {[%clk 0:00:35.1]} 43. Kd2 {[%clk 0:00:11.7]}
43... Rc5 {[%clk 0:00:33.8]} 44. Re8 {[%clk 0:00:08.7]} 44... a3 {[%clk
0:00:33.8]} 45. Ra8 {[%clk 0:00:09.9]} 45... b4 {[%clk 0:00:34.7]} 46. e4 {[%clk
0:00:08.7]} 46... Ke5 {[%clk 0:00:30]} 47. f3 {[%clk 0:00:07.9]} 47... Kd4
{[%clk 0:00:31.5]} 48. Rd8+ {[%clk 0:00:04.4]} 48... Kc4 {[%clk 0:00:32.8]} 49.
Ra8 {[%clk 0:00:06.3]} 49... Rh5 {[%clk 0:00:33.5]} 50. f4 {[%clk 0:00:05.7]}
50... Rxh4 {[%clk 0:00:34]} 51. Ke3 {[%clk 0:00:06.3]} 51... Rh3+ {[%clk
0:00:32]} 52. Kf2 {[%clk 0:00:07.6]} 52... Kd4 {[%clk 0:00:33.2]} 53. e5 {[%clk
0:00:08.7]} 53... a2 {[%clk 0:00:17.5]} 54. e6 {[%clk 0:00:05.7]} 54... Rh6
{[%clk 0:00:16.1]} 55. Rxa2 {[%clk 0:00:04.1]} 55... Rh2+ {[%clk 0:00:14.7]} 56.
Kf3 {[%clk 0:00:04.5]} 56... Rxa2 {[%clk 0:00:16.1]} 57. f5 {[%clk 0:00:04.5]}
57... Ke5 {[%clk 0:00:16.4]} 58. e7 {[%clk 0:00:05.6]} 58... Ra8 {[%clk
0:00:17.1]} 59. e8=Q+ {[%clk 0:00:07.1]} 0-1

[Event "*** Qualifier 2: Titled Tuesday 3|2 Blitz"]
[Site "Chess.com"]
[Date "2017.04.11"]
[Round "2"]
[White "MaxLeto"]
[Black "TenisMaster"]
[Result "0-1"]
[WhiteElo "2353"]
[BlackElo "2646"]
[TimeControl "180+2"]
[EndTime "13:24:06 PDT"]
[Termination "TenisMaster won on time"]

1. d4 {[%clk 0:03:02]} 1... Nf6 {[%clk 0:03:00.1]} 2. Nf3 {[%clk 0:03:02.6]}
2... e6 {[%clk 0:02:59.1]} 3. Bf4 {[%clk 0:03:02.1]} 3... b6 {[%clk 0:02:54.4]}
4. e3 {[%clk 0:02:58.2]} 4... Be7 {[%clk 0:02:54.7]} 5. h3 {[%clk 0:02:57.3]}
5... c5 {[%clk 0:02:55.2]} 6. c3 {[%clk 0:02:58.1]} 6... O-O {[%clk 0:02:55.6]}
7. Nbd2 {[%clk 0:02:58.8]} 7... Ba6 {[%clk 0:02:55]} 8. Bxa6 {[%clk 0:02:58.1]}
8... Nxa6 {[%clk 0:02:55.4]} 9. Qe2 {[%clk 0:02:51.9]} 9... Qc8 {[%clk
0:02:54.7]} 10. O-O {[%clk 0:02:41.3]} 10... cxd4 {[%clk 0:02:52.7]} 11. exd4
{[%clk 0:02:20.3]} 11... Qb7 {[%clk 0:02:42.8]} 12. Rfe1 {[%clk 0:02:01.1]}
12... Nc7 {[%clk 0:02:32.9]} 13. Bh2 {[%clk 0:01:58.5]} 13... d6 {[%clk
0:02:28]} 14. Nc4 {[%clk 0:01:54.1]} 14... Rfd8 {[%clk 0:02:25.7]} 15. a4 {[%clk
0:01:55.5]} 15... Bf8 {[%clk 0:02:21.6]} 16. Bg3 {[%clk 0:01:35.2]} 16... Ncd5
{[%clk 0:02:18]} 17. Nfd2 {[%clk 0:01:29.7]} 17... a6 {[%clk 0:02:13.7]} 18. Bh4
{[%clk 0:01:25.5]} 18... Rdc8 {[%clk 0:02:03.9]} 19. Qf3 {[%clk 0:01:22.9]}
19... Rab8 {[%clk 0:01:54.3]} 20. Na3 {[%clk 0:00:54.7]} 20... b5 {[%clk
0:01:46.6]} 21. axb5 {[%clk 0:00:51.2]} 21... axb5 {[%clk 0:01:48.5]} 22. Nc2
{[%clk 0:00:35.4]} 22... Nd7 {[%clk 0:01:48.4]} 23. Ne4 {[%clk 0:00:25.6]} 23...
N7b6 {[%clk 0:01:26.6]} 24. Qg3 {[%clk 0:00:24.2]} 24... Qc6 {[%clk 0:01:12.7]}
25. Ra3 {[%clk 0:00:17.5]} 25... Nc4 {[%clk 0:01:12.2]} 26. Rb3 {[%clk 0:00:17]}
26... h6 {[%clk 0:01:08.9]} 27. Nb4 {[%clk 0:00:18.1]} 27... Nxb4 {[%clk
0:01:08.7]} 28. Rxb4 {[%clk 0:00:20]} 28... d5 {[%clk 0:00:58.9]} 29. Nf6+
{[%clk 0:00:09.7]} 29... Kh8 {[%clk 0:00:59.5]} 30. Nh5 {[%clk 0:00:10.1]} 30...
Qc7 {[%clk 0:00:50.9]} 31. Rb3 {[%clk 0:00:06]} 31... Qxg3 {[%clk 0:00:46.9]}
32. Bxg3 {[%clk 0:00:07.9]} 32... Rb7 {[%clk 0:00:46.9]} 33. Re2 {[%clk
0:00:08.7]} 33... Ra8 {[%clk 0:00:41]} 34. Nf4 {[%clk 0:00:08.7]} 34... Ra1+
{[%clk 0:00:40.8]} 35. Kh2 {[%clk 0:00:09.4]} 35... Na5 {[%clk 0:00:41.3]} 36.
Rb4 {[%clk 0:00:03.2]} 36... Bxb4 {[%clk 0:00:39.5]} 37. cxb4 {[%clk 0:00:05.1]}
37... Nc6 {[%clk 0:00:39.3]} 38. Nd3 {[%clk 0:00:02.9]} 38... Nxd4 {[%clk
0:00:39.3]} 39. Rd2 {[%clk 0:00:04.5]} 39... Nf5 {[%clk 0:00:37.7]} 40. Be5
{[%clk 0:00:04.8]} 40... f6 {[%clk 0:00:38.1]} 41. Nc5 {[%clk 0:00:06]} 41...
Re7 {[%clk 0:00:38.4]} 42. Bf4 {[%clk 0:00:05.9]} 42... e5 {[%clk 0:00:38.8]}
43. Bg3 {[%clk 0:00:07.1]} 43... d4 {[%clk 0:00:38.9]} 44. f3 {[%clk 0:00:04.6]}
44... Rc1 {[%clk 0:00:35]} 45. Bf2 {[%clk 0:00:04.8]} 45... Nd6 {[%clk
0:00:34.9]} 46. f4 {[%clk 0:00:04.5]} 46... Nc4 {[%clk 0:00:35.4]} 47. Re2
{[%clk 0:00:05.1]} 47... Rd1 {[%clk 0:00:32.8]} 48. fxe5 {[%clk 0:00:03.8]}
48... Rxe5 {[%clk 0:00:32.6]} 49. Rc2 {[%clk 0:00:03.7]} 49... d3 {[%clk
0:00:32.1]} 50. Rc3 {[%clk 0:00:03.5]} 50... Re2 {[%clk 0:00:30.2]} 51. Nxd3
{[%clk 0:00:03.5]} 51... Rxd3 {[%clk 0:00:27.1]} 52. Rxd3 {[%clk 0:00:05.4]}
52... Rxf2 {[%clk 0:00:28]} 53. Rd5 {[%clk 0:00:07.1]} 53... Rxb2 {[%clk
0:00:28]} 54. Rxb5 {[%clk 0:00:08.7]} 54... Kh7 {[%clk 0:00:28.3]} 55. Kg3
{[%clk 0:00:07.8]} 55... Ne3 {[%clk 0:00:29.1]} 56. Kf3 {[%clk 0:00:08.8]} 56...
Nxg2 {[%clk 0:00:28.8]} 57. Rb7 {[%clk 0:00:07.3]} 57... Ne1+ {[%clk 0:00:29.6]}
58. Ke4 {[%clk 0:00:07.1]} 58... Nc2 {[%clk 0:00:30]} 59. b5 {[%clk 0:00:08.5]}
59... Na3 {[%clk 0:00:30.9]} 60. b6 {[%clk 0:00:07.4]} 60... Nc4 {[%clk
0:00:32]} 61. Rc7 {[%clk 0:00:04.3]} 61... Nxb6 {[%clk 0:00:32.6]} 62. Kf5
{[%clk 0:00:04.8]} 62... Nd5 {[%clk 0:00:31.6]} 63. Rd7 {[%clk 0:00:04.4]} 63...
Ne3+ {[%clk 0:00:30.8]} 64. Ke6 {[%clk 0:00:04.7]} 64... Nc4 {[%clk 0:00:27]}
65. Rc7 {[%clk 0:00:02.9]} 65... Ne5 {[%clk 0:00:28]} 66. Ke7 {[%clk 0:00:02.5]}
66... Rb8 {[%clk 0:00:27.2]} 67. Ra7 {[%clk 0:00:02.8]} 67... Nc6+ {[%clk
0:00:25.5]} 0-1